bitfinex/quotes_SOLUSD_20241107
["timestamp","ask_amount","ask_price","bid_price","bid_amount"]
[1730993654902,14.98750613,190.13,190.11,0.1]
[1730993655578,14.98750613,190.12,190.09,0.1]
[1730993655819,14.98750613,190.11,190.09,0.1]
[1730993655980,14.98750613,190.12,190.09,0.2]
[1730993656306,14.98750613,190.12,190.1,0.1]
[1730993656483,14.98750613,190.12,190.09,0.2]
[1730993656998,14.98750613,190.12,190.1,0.1]
[1730993657184,14.98750613,190.12,190.09,0.2]
[1730993657578,5.2595,190.14,190.09,0.2]
[1730993657579,14.98750613,190.11,190.09,0.1]
[1730993657990,14.98750613,190.17,190.12,0.2]
[1730993658285,14.98750613,190.17,190.12,141.0]
[1730993658479,14.98750613,190.16,190.12,141.1]
[1730993659090,14.98750613,190.17,190.12,141.0]
[1730993659300,14.98750613,190.16,190.12,141.0]
[1730993659507,14.98750613,190.16,190.12,141.1]
[1730993660402,14.98750613,190.18,190.15,0.1]
[1730993660595,35.7501,190.26,190.17,0.1]
[1730993660908,20.24370613,190.25,190.2,0.1]
[1730993661203,20.24370613,190.25,190.2,0.2]
[1730993661587,20.24370613,190.25,190.21,0.1]
[1730993662720,20.24370613,190.25,190.2,0.2]
[1730993662923,20.24370613,190.25,190.18,0.1]
[1730993662924,14.98750613,190.21,190.18,0.1]
[1730993663201,0.12549,190.18,190.14,0.2]
[1730993663397,15.11299613,190.18,190.14,0.2]
[1730993663604,18.3968,190.25,190.21,0.1]
[1730993663605,5.2562,190.25,190.21,0.1]
[1730993663791,5.2562,190.25,190.14,140.9]
[1730993663792,5.2562,190.25,190.22,0.1]
[1730993663982,14.98750613,190.25,190.23,0.1]
[1730993664186,20.24350613,190.26,190.23,0.1]
[1730993664585,20.24350613,190.26,190.21,0.2]
[1730993664809,14.98750613,190.24,190.2,0.1]
[1730993664991,14.98750613,190.24,190.22,0.1]
[1730993665305,5.256,190.26,190.22,0.1]
[1730993665306,14.98750613,190.25,190.22,0.1]
[1730993665490,14.98750613,190.25,190.21,0.2]
[1730993665693,14.98750613,190.25,190.21,0.1]
[1730993666094,14.98750613,190.25,190.22,0.1]
[1730993666309,23.902374,190.28,190.22,0.1]
[1730993666617,14.98750613,190.26,190.22,0.2]
[1730993666782,14.98750613,190.26,190.22,0.1]
[1730993666978,14.98750613,190.26,190.23,0.1]
[1730993667183,14.98750613,190.27,190.23,0.1]
[1730993667404,14.98750613,190.27,190.24,0.1]
[1730993667985,14.98750613,190.26,190.24,0.1]
[1730993668580,14.98750613,190.26,190.23,0.1]
[1730993669890,20.24310613,190.27,190.23,0.1]
[1730993670082,5.2556,190.27,190.23,0.1]
[1730993670514,5.2556,190.27,190.25,0.1]
[1730993670701,14.98750613,190.29,190.25,0.1]
[1730993670899,20.24280613,190.29,190.25,0.1]
[1730993671093,20.24280613,190.29,190.26,0.1]
[1730993671399,20.24280613,190.29,190.25,0.1]
[1730993671598,0.5735073,190.3,190.28,0.1]
[1730993671913,5.8284073,190.3,190.28,0.1]
[1730993672510,20.81591343,190.3,190.27,0.1]
[1730993672930,20.81591343,190.3,190.28,0.1]
[1730993673211,5.8284073,190.3,190.29,0.1]
[1730993673424,5.8284073,190.3,190.28,0.1]
[1730993673589,5.8284073,190.3,190.26,0.1]
[1730993673590,20.81591343,190.3,190.29,0.1]
[1730993673910,5.8284073,190.3,190.29,0.1]
[1730993675106,5.8284073,190.3,190.28,0.1]
[1730993675312,0.5735073,190.3,190.29,0.1]
[1730993675512,5.8283073,190.3,190.27,0.1]
[1730993675724,5.8283073,190.3,190.28,0.1]
[1730993676010,5.8283073,190.3,190.27,0.1]
[1730993676214,20.81581343,190.3,190.26,0.1]
[1730993676519,5.8283073,190.3,190.28,0.1]
[1730993677109,20.81581343,190.3,190.26,0.1]
[1730993677307,20.81581343,190.3,190.28,0.1]
[1730993677488,5.8283073,190.3,190.28,0.1]
[1730993677687,0.5735073,190.3,190.29,0.1]
[1730993680920,0.5735073,190.3,190.29,0.2]
[1730993681124,0.5735073,190.3,190.29,15.18750613]
[1730993681413,0.5735073,190.3,190.29,0.1]
[1730993682215,0.5735073,190.3,190.29,0.2]
[1730993683098,0.5735073,190.3,190.29,0.1]
[1730993683297,0.5735073,190.3,190.29,0.2]
[1730993684502,0.5735073,190.3,190.29,15.18750613]
[1730993684910,0.5735073,190.3,190.29,38.09400613]
[1730993685223,0.5735073,190.3,190.29,38.21949613]
[1730993685600,0.5735073,190.3,190.29,179.11949613]
[1730993686610,0.5735073,190.3,190.29,178.99400613]
[1730993687210,0.5735073,190.3,190.29,38.09400613]
[1730993688029,0.5735073,190.3,190.29,38.21949613]
[1730993688321,0.5735073,190.3,190.29,38.31949613]
[1730993688526,13.126,190.47,190.42,0.1]
[1730993688527,20.23870613,190.43,190.42,0.1]
[1730993688696,5.251,190.44,190.43,0.1]
[1730993688896,20.23850613,190.44,190.43,0.1]
[1730993689122,14.98750613,190.44,190.43,0.1]
[1730993689720,21.2169,190.45,190.43,0.1]
[1730993689917,14.98750613,190.44,190.43,0.1]
[1730993690607,20.23840613,190.44,190.43,0.1]
[1730993691230,20.23840613,190.44,190.42,0.1]
[1730993691433,14.98750613,190.43,190.42,0.1]
[1730993691811,20.23840613,190.45,190.42,0.1]
[1730993692213,20.23840613,190.45,190.44,0.1]
[1730993693405,20.23790613,190.46,190.44,0.1]
[1730993693805,20.23790613,190.46,190.41,0.1]
[1730993693806,20.23790613,190.46,190.45,0.1]
[1730993694806,20.23790613,190.46,190.44,0.1]
[1730993695009,14.98750613,190.45,190.42,0.1]
[1730993695210,14.98750613,190.44,190.42,0.1]
[1730993695515,20.23790613,190.46,190.44,0.1]
[1730993695714,20.23790613,190.46,190.45,0.1]
[1730993695923,20.23790613,190.46,190.44,0.1]
[1730993696131,20.23790613,190.46,190.43,0.1]
[1730993696424,14.98750613,190.45,190.42,0.1]
[1730993696627,14.98750613,190.44,190.41,0.1]
[1730993696841,20.23870613,190.43,190.41,0.1]
[1730993697137,5.2512,190.43,190.42,0.1]
[1730993697432,5.2512,190.43,190.41,0.1]
[1730993697737,5.251,190.44,190.43,0.1]
[1730993697914,20.23850613,190.44,190.42,0.1]
[1730993698111,20.23850613,190.44,190.43,0.1]
[1730993698313,20.23850613,190.44,190.41,0.1]
[1730993698610,20.23850613,190.44,190.39,0.1]
[1730993698611,14.98750613,190.42,190.39,0.1]
[1730993698825,14.98750613,190.41,190.39,0.1]
[1730993699128,14.98750613,190.41,190.38,0.1]
[1730993699334,14.98750613,190.41,190.4,0.1]
[1730993699517,14.98750613,190.41,190.39,0.1]
[1730993700227,14.98750613,190.43,190.41,0.1]
[1730993700426,14.98750613,190.42,190.4,0.1]
[1730993700625,14.98750613,190.41,190.39,0.1]
[1730993700842,5.2518,190.41,190.39,0.1]
[1730993701139,5.2518,190.41,190.4,0.1]
[1730993701651,5.2518,190.41,190.38,0.1]
[1730993701933,5.2518,190.41,190.38,0.2]
[1730993702129,5.2518,190.41,190.39,0.1]
[1730993702538,5.2518,190.41,190.38,0.2]
[1730993702832,5.2518,190.41,190.39,0.1]
[1730993703040,5.2501,190.47,190.45,0.1]
[1730993703211,5.2501,190.47,190.41,0.1]
[1730993703410,14.98750613,190.45,190.42,0.1]
[1730993703819,14.98750613,190.43,190.33,0.1]
[1730993704052,14.98750613,190.36,190.35,0.1]
[1730993704216,14.98750613,190.4,190.36,0.1]
[1730993704415,14.98750613,190.37,190.34,0.1]
[1730993704622,14.98750613,190.38,190.35,0.1]
[1730993704815,0.12549,190.41,190.35,0.1]
[1730993704816,14.98750613,190.37,190.35,0.1]
[1730993705019,20.24050613,190.37,190.35,0.1]
[1730993705216,14.98750613,190.36,190.35,0.1]
[1730993705428,20.24050613,190.37,190.33,0.2]
[1730993705619,14.98750613,190.35,190.33,0.1]
[1730993706021,14.98750613,190.35,190.34,0.1]
[1730993706443,14.98750613,190.35,190.32,0.1]
[1730993706647,14.98750613,190.33,190.29,0.1]
[1730993706943,14.98750613,190.33,190.3,0.1]
[1730993707133,14.98750613,190.33,190.32,0.1]
[1730993707329,14.98750613,190.34,190.31,0.1]
[1730993707547,14.98750613,190.34,190.32,0.1]
[1730993708546,20.24140613,190.34,190.32,0.1]
[1730993708848,6.5839762,190.42,190.38,0.1]
[1730993709022,5.2512,190.43,190.39,0.1]
[1730993709224,14.98750613,190.41,190.4,0.1]
[1730993709451,5.2512,190.43,190.4,0.2]
[1730993709657,14.98750613,190.43,190.41,0.2]
[1730993709958,14.98750613,190.44,190.43,0.1]
[1730993710659,20.23840613,190.44,190.43,0.1]
[1730993711245,14.98750613,190.44,190.43,0.1]
[1730993711640,11.8337762,190.49,190.46,0.1]
[1730993711845,14.98750613,190.47,190.46,0.1]
[1730993712348,14.98750613,190.47,190.43,0.1]
[1730993712547,14.98750613,190.45,190.43,0.2]
[1730993712854,14.98750613,190.45,190.44,0.2]
[1730993713049,14.98750613,190.45,190.44,0.1]
[1730993713640,14.98750613,190.45,190.43,0.1]
[1730993713841,14.98750613,190.44,190.43,0.1]
[1730993714047,5.8236073,190.48,190.47,0.1]
[1730993714242,20.81111343,190.48,190.47,0.1]
[1730993714725,0.5735073,190.48,190.47,0.2]
[1730993716230,15.56101343,190.48,190.47,0.1]
[1730993716750,0.5735073,190.48,190.47,0.2]
[1730993719071,0.5735073,190.48,190.47,15.18750613]
[1730993720050,0.5735073,190.48,190.47,0.2]
[1730993720251,0.5735073,190.48,190.47,15.18750613]
[1730993721355,0.5735073,190.48,190.47,21.31010613]
[1730993722434,0.5735073,190.48,190.47,37.12680613]
[1730993722635,0.5735073,190.48,190.47,178.05229613]
[1730993722854,0.5735073,190.48,190.47,177.92680613]
[1730993724530,0.5735073,190.48,190.47,0.2]
[1730993725346,0.5735073,190.48,190.47,0.1]
[1730993725540,0.5735073,190.48,190.47,0.2]
[1730993726633,5.8233073,190.48,190.45,0.1]
[1730993726833,5.8233073,190.48,190.44,0.1]
[1730993726834,14.98750613,190.46,190.44,0.1]
[1730993727044,5.8233073,190.48,190.36,15.994]
[1730993727045,5.2502,190.47,190.36,15.994]
[1730993727261,20.23770613,190.47,190.41,14.98750613]
[1730993727435,5.2502,190.47,190.41,14.98750613]
[1730993727831,0.5735073,190.48,190.42,14.98750613]
[1730993728031,0.5735073,190.48,190.43,14.98750613]
[1730993728263,14.98750613,190.46,190.4,14.98750613]
[1730993728557,0.5735073,190.48,190.4,14.98750613]
[1730993728558,14.98750613,190.47,190.4,14.98750613]
[1730993728760,14.98750613,190.46,190.39,14.98750613]
[1730993728958,20.23810613,190.46,190.39,14.98750613]
[1730993729262,5.2506,190.46,190.41,14.98750613]
[1730993729560,0.5735073,190.48,190.42,14.98750613]
[1730993729863,0.5735073,190.48,190.44,14.98750613]
[1730993730051,0.5735073,190.48,190.45,14.98750613]
[1730993730436,0.5735073,190.48,190.46,14.98750613]
[1730993730860,0.5735073,190.48,190.47,14.98750613]
[1730993731060,0.5735073,190.48,190.46,14.98750613]
[1730993731588,0.5735073,190.48,190.47,14.98750613]
[1730993734757,0.5735073,190.48,190.46,14.98750613]
[1730993735371,0.5735073,190.48,190.44,6.098]
[1730993735372,0.5735073,190.48,190.47,14.98750613]
[1730993735873,0.5735073,190.48,190.46,14.98750613]
[1730993736953,0.5735073,190.48,190.47,14.98750613]
[1730993741477,0.5735073,190.48,190.47,155.88750613]
[1730993742475,0.5735073,190.48,190.47,14.98750613]
[1730993742853,0.5735073,190.48,190.47,15.08750613]
[1730993743059,0.5735073,190.48,190.47,35.31299613]
[1730993743462,0.5735073,190.48,190.47,34.98750613]
[1730993744678,0.5735073,190.48,190.47,14.98750613]
[1730993748874,0.5735073,190.48,190.47,35.18750613]
[1730993749087,0.5735073,190.48,190.47,35.08750613]
[1730993749278,0.5735073,190.48,190.47,34.98750613]
[1730993749456,0.5735073,190.48,190.47,14.98750613]
[1730993749780,0.5735073,190.48,190.47,155.88750613]
[1730993750474,0.5735073,190.48,190.47,15.08750613]
[1730993750653,0.5735073,190.48,190.47,14.98750613]
[1730993753053,0.5735073,190.48,190.47,176.21299613]
[1730993753354,14.98750613,190.6,190.49,0.1]
[1730993753682,14.98750613,190.57,190.51,14.98750613]
[1730993754587,20.23510613,190.57,190.51,14.98750613]
[1730993754875,14.98750613,190.56,190.49,14.98750613]
[1730993755362,14.98750613,190.56,190.5,14.98750613]
[1730993755569,14.98750613,190.57,190.51,14.98750613]
[1730993756980,5.2466,190.6,190.52,14.98750613]
[1730993757183,14.98750613,190.58,190.52,14.98750613]
[1730993758191,14.98750613,190.6,190.54,14.98750613]
[1730993758558,14.98750613,190.59,190.53,14.98750613]
[1730993759759,14.98750613,190.6,190.53,14.98750613]
[1730993760057,14.98750613,190.59,190.53,14.98750613]
[1730993760263,14.98750613,190.58,190.52,14.98750613]
[1730993760774,14.98750613,190.6,190.54,14.98750613]
[1730993760965,14.98750613,190.59,190.53,14.98750613]
[1730993761167,14.98750613,190.61,190.55,14.98750613]
[1730993761374,37.40040613,190.62,190.56,14.98750613]
[1730993761567,14.98750613,190.6,190.54,14.98750613]
[1730993762861,14.98750613,190.57,190.51,14.98750613]
[1730993763064,14.98750613,190.56,190.49,14.98750613]
[1730993763266,14.98750613,190.56,190.5,14.98750613]
[1730993763572,14.98750613,190.55,190.49,14.98750613]
[1730993764965,14.98750613,190.53,190.47,14.98750613]
[1730993765377,14.98750613,190.54,190.48,14.98750613]
[1730993765759,14.98750613,190.53,190.47,14.98750613]
[1730993765960,14.98750613,190.52,190.46,14.98750613]
[1730993766175,6.4775,190.54,190.42,140.9]
[1730993766176,14.98750613,190.51,190.45,14.98750613]
[1730993766484,14.98750613,190.52,190.46,14.98750613]
[1730993766673,14.98750613,190.51,190.46,14.98750613]
[1730993767063,15.0489,190.59,190.49,14.98750613]
[1730993767262,15.0489,190.59,190.52,14.98750613]
[1730993767263,14.98750613,190.58,190.52,14.98750613]
[1730993767483,14.98750613,190.57,190.51,14.98750613]
[1730993767790,14.98750613,190.57,190.5,14.98750613]
[1730993768089,14.98750613,190.56,190.5,14.98750613]
[1730993768386,14.98750613,190.58,190.51,14.98750613]
[1730993768687,14.98750613,190.56,190.49,14.98750613]
[1730993768984,14.98750613,190.57,190.51,14.98750613]
[1730993769182,14.98750613,190.58,190.51,14.98750613]
[1730993770482,20.2958,190.59,190.51,14.98750613]
[1730993770483,14.98750613,190.57,190.51,14.98750613]
[1730993772285,20.23460613,190.58,190.51,14.98750613]
[1730993772486,14.98750613,190.58,190.51,14.98750613]
[1730993772869,13.48750613,190.58,190.51,14.98750613]
[1730993773374,14.98750613,190.57,190.46,162.9254]
[1730993773575,14.98750613,190.57,190.51,14.98750613]
[1730993774685,27.5124,190.64,190.55,14.98750613]
[1730993774894,14.98750613,190.62,190.55,14.98750613]
[1730993775100,14.98750613,190.62,190.56,14.98750613]
[1730993775274,10.56913766,190.63,190.57,10.56913766]
[1730993775469,15.6541,190.64,190.58,10.56913766]
[1730993775671,10.56913766,190.65,190.59,10.56913766]
[1730993776470,10.56913766,190.63,190.54,15.9258]
[1730993776674,10.56913766,190.63,190.57,10.56913766]
[1730993776890,7.1864073,190.67,190.56,10.56913766]
[1730993777091,10.56913766,190.63,190.57,10.56913766]
[1730993777472,16.51484748,190.64,190.58,16.51484748]
[1730993777675,16.51484748,190.63,190.57,16.51484748]
[1730993778188,16.51484748,190.6,190.54,16.51484748]
[1730993778573,16.51484748,190.59,190.53,16.51484748]
[1730993778785,0.12549,190.64,190.49,16.3004]
[1730993778786,16.51484748,190.6,190.54,16.51484748]
[1730993779389,16.51484748,190.61,190.55,16.51484748]
[1730993779892,16.51484748,190.6,190.54,16.51484748]
[1730993780499,16.51484748,190.61,190.55,16.51484748]
[1730993780805,16.51484748,190.6,190.54,16.51484748]
[1730993781296,16.51484748,190.61,190.55,16.51484748]
[1730993781498,16.51484748,190.62,190.56,16.51484748]
[1730993782303,16.51484748,190.62,190.55,16.51484748]
[1730993782603,16.51484748,190.62,190.56,16.51484748]
[1730993782778,16.51484748,190.61,190.55,16.51484748]
[1730993783200,16.51484748,190.6,190.54,16.51484748]
[1730993784704,18.48269,190.66,190.56,16.51484748]
[1730993784888,16.51484748,190.62,190.56,16.51484748]
[1730993785203,16.51484748,190.63,190.57,16.51484748]
[1730993786008,16.51484748,190.64,190.58,16.51484748]
[1730993786200,16.51484748,190.63,190.57,16.51484748]
[1730993786709,16.51484748,190.62,190.56,16.51484748]
[1730993787313,5.2457,190.64,190.55,16.51484748]
[1730993787314,16.51484748,190.61,190.55,16.51484748]
[1730993788509,7.1864073,190.67,190.51,0.1]
[1730993788510,16.51484748,190.63,190.57,16.51484748]
[1730993788712,16.51484748,190.61,190.55,16.51484748]
[1730993789704,16.51484748,190.62,190.56,16.51484748]
[1730993790105,16.51484748,190.63,190.57,16.51484748]
[1730993790697,16.51484748,190.62,190.56,16.51484748]
[1730993790915,5.2452,190.65,190.58,16.51484748]
[1730993791090,16.51484748,190.64,190.58,16.51484748]
[1730993791287,14.01484748,190.64,190.58,16.51484748]
[1730993791713,16.51484748,190.63,190.58,16.51484748]
[1730993792912,16.51484748,190.63,190.57,16.51484748]
[1730993794415,16.51484748,190.65,190.59,16.51484748]
[1730993794615,16.51484748,190.66,190.6,16.51484748]
[1730993794814,16.51484748,190.65,190.59,16.51484748]
[1730993794999,16.51484748,190.66,190.6,16.51484748]
[1730993795207,0.5735073,190.67,190.62,16.51484748]
[1730993795919,5.8182073,190.67,190.62,16.51484748]
[1730993796301,5.8182073,190.67,190.57,16.5395]
[1730993796302,17.08835478,190.67,190.61,16.51484748]
[1730993796510,16.51484748,190.65,190.59,16.51484748]
[1730993797617,10.56722706,190.64,190.54,6.3978]
[1730993797804,5.2449,190.66,190.57,10.56722706]
[1730993797805,10.56722706,190.63,190.57,10.56722706]
[1730993798902,10.56722706,190.62,190.54,6.3978]
[1730993799219,10.56722706,190.62,190.56,10.56722706]
[1730993800009,15.81302706,190.63,190.57,10.56722706]
[1730993800596,10.56722706,190.62,190.56,10.56722706]
[1730993802024,10.56722706,190.64,190.58,10.56722706]
[1730993802517,10.56722706,190.63,190.57,10.56722706]
[1730993802708,10.56722706,190.62,190.56,10.56722706]
[1730993803093,5.2458,190.63,190.56,10.56722706]
[1730993803418,15.81302706,190.63,190.57,10.56722706]
[1730993803924,10.56722706,190.62,190.55,10.56722706]
[1730993804993,10.56722706,190.6,190.53,15.5523]
[1730993805194,5.2461,190.62,190.51,10.56722706]
[1730993805411,5.2461,190.62,190.53,10.56722706]
[1730993805628,10.56722706,190.59,190.53,10.56722706]
[1730993805920,10.56722706,190.59,190.52,10.56722706]
[1730993806220,10.56722706,190.6,190.54,10.56722706]
[1730993806430,5.2461,190.62,190.49,6.3806]
[1730993806719,10.56722706,190.6,190.54,10.56722706]
[1730993806919,10.56722706,190.59,190.49,6.3806]
[1730993807110,10.56722706,190.59,190.53,10.56722706]
[1730993807309,10.56722706,190.6,190.54,10.56722706]
[1730993808401,10.56722706,190.64,190.57,10.56722706]
[1730993808698,5.8181073,190.67,190.59,10.56722706]
[1730993808903,10.56722706,190.66,190.59,10.56722706]
[1730993809133,10.56722706,190.65,190.59,10.56722706]
[1730993809316,10.56722706,190.65,190.58,10.56722706]
[1730993809503,10.56722706,190.64,190.58,10.56722706]
[1730993810421,10.56722706,190.63,190.57,10.56722706]
[1730993811022,10.56722706,190.64,190.58,10.56722706]
[1730993811427,5.2452,190.65,190.58,10.56722706]
[1730993811614,10.56722706,190.64,190.58,10.56722706]
[1730993813518,5.2452,190.65,190.58,10.56722706]
[1730993813725,10.56722706,190.64,190.58,10.56722706]
[1730993813914,5.8182073,190.67,190.59,10.56722706]
[1730993814119,10.56722706,190.65,190.59,10.56722706]
[1730993814723,0.5735073,190.67,190.61,10.56722706]
[1730993814929,11.14073436,190.67,190.61,10.56722706]
[1730993815613,0.5735073,190.67,190.62,10.56722706]
[1730993816220,11.14073436,190.67,190.58,6.4074]
[1730993816422,11.14073436,190.67,190.6,10.56722706]
[1730993816716,10.56722706,190.66,190.6,10.56722706]
[1730993817520,5.8181073,190.67,190.64,10.56722706]
[1730993817521,0.5735073,190.67,190.64,10.56722706]
[1730993817718,0.5735073,190.67,190.66,10.56722706]
[1730993818531,0.5735073,190.67,190.66,30.56722706]
[1730993819238,0.5735073,190.67,190.6,20.0]
[1730993819413,0.5735073,190.67,190.64,10.56722706]
[1730993819735,0.5735073,190.67,190.66,32.28243068]
[1730993820231,0.5735073,190.67,190.66,52.60792068]
[1730993820420,0.5735073,190.67,190.66,84.05883933]
[1730993820734,0.999,190.7,190.68,0.1]
[1730993820918,0.999,190.7,190.69,36.59533068]
[1730993821110,0.999,190.7,190.69,36.49533068]
[1730993822527,0.999,190.7,190.69,60.59770468]
[1730993822738,0.999,190.7,190.69,61.64590944]
[1730993822938,0.999,190.7,190.69,60.39770468]
[1730993823143,0.1,190.92,190.74,15.0763]
[1730993823316,17.06883798,190.86,190.79,16.49533068]
[1730993823518,16.49533068,190.84,190.78,16.49533068]
[1730993823825,5.8130073,190.86,190.75,16.49533068]
[1730993824022,5.8130073,190.86,190.77,16.49533068]
[1730993824217,16.49533068,190.83,190.77,16.49533068]
[1730993824639,16.49533068,190.84,190.77,16.49533068]
[1730993824842,16.49533068,190.83,190.77,16.49533068]
[1730993825141,16.49533068,190.84,190.77,16.49533068]
[1730993825646,16.49533068,190.85,190.78,16.49533068]
[1730993825815,16.49533068,190.86,190.79,16.49533068]
[1730993826015,16.49533068,190.85,190.78,16.49533068]
[1730993826638,16.49533068,190.88,190.81,16.49533068]
[1730993826841,16.49533068,190.87,190.81,16.49533068]
[1730993827041,16.49533068,190.87,190.8,16.49533068]
[1730993827227,16.49533068,190.88,190.82,16.49533068]
[1730993827428,16.49533068,190.87,190.81,16.49533068]
[1730993827731,16.49533068,190.83,190.74,15.0763]
[1730993827934,16.49533068,190.84,190.78,16.49533068]
[1730993828133,16.49533068,190.85,190.79,16.49533068]
[1730993828324,16.49533068,190.84,190.78,16.49533068]
[1730993829224,16.49533068,190.83,190.76,16.49533068]
[1730993829521,16.49533068,190.83,190.74,15.0763]
[1730993829522,20.0,190.89,190.78,16.49533068]
[1730993829828,16.49533068,190.85,190.78,16.49533068]
[1730993830026,5.2388,190.88,190.78,16.49533068]
[1730993830231,16.49533068,190.84,190.78,16.49533068]
[1730993830432,16.49533068,190.84,190.77,16.49533068]
[1730993830728,16.49533068,190.84,190.78,16.49533068]
[1730993830927,16.4647,190.93,190.83,16.49533068]
[1730993831234,16.49533068,190.9,190.83,16.49533068]
[1730993831415,16.49533068,190.89,190.83,16.49533068]
[1730993832119,16.49533068,190.9,190.83,16.49533068]
[1730993832639,16.49533068,190.92,190.86,16.49533068]
[1730993832836,16.49533068,190.91,190.85,16.49533068]
[1730993833014,16.49533068,190.91,190.84,16.49533068]
[1730993833218,16.49533068,190.9,190.83,16.49533068]
[1730993833418,16.49533068,190.89,190.83,16.49533068]
[1730993833832,21.7022,190.93,190.79,23.876884]
[1730993833833,16.49533068,190.9,190.84,16.49533068]
[1730993834248,21.7022,190.93,190.84,16.49533068]
[1730993834450,16.49533068,190.89,190.83,16.49533068]
[1730993834751,16.49533068,190.9,190.84,16.49533068]
[1730993835524,16.49533068,190.91,190.84,16.49533068]
[1730993835746,16.49533068,190.9,190.84,16.49533068]
[1730993836330,16.49533068,190.91,190.85,16.49533068]
[1730993836845,16.49533068,190.92,190.86,16.49533068]
[1730993837444,16.49533068,190.93,190.87,16.49533068]
[1730993837644,16.49533068,190.94,190.88,16.49533068]
[1730993838455,16.49533068,190.95,190.89,16.49533068]
[1730993838641,5.2364,190.97,190.89,16.49533068]
[1730993838943,16.49533068,190.94,190.88,16.49533068]
[1730993840345,5.2369,190.96,190.88,16.49533068]
[1730993840536,16.49533068,190.95,190.89,16.49533068]
[1730993840737,16.49533068,190.94,190.88,16.49533068]
[1730993841444,16.49533068,190.95,190.89,16.49533068]
[1730993841651,16.49533068,190.95,190.84,0.12549]
[1730993841652,16.49533068,190.94,190.88,16.49533068]
[1730993843135,5.236,190.99,190.88,16.49533068]
[1730993843336,16.49533068,190.97,190.91,16.49533068]
[1730993843539,5.236,190.99,190.89,16.49533068]
[1730993843751,16.49533068,190.9,190.83,20.955692]
[1730993844046,16.49533068,190.9,190.84,16.49533068]
[1730993844452,16.49533068,190.86,190.82,16.5418]
[1730993844754,16.49533068,190.86,190.8,16.49533068]
[1730993844951,16.49533068,190.87,190.81,16.49533068]
[1730993845331,16.49533068,190.86,190.8,16.49533068]
[1730993847134,16.49533068,190.85,190.79,31.99923068]
[1730993847338,16.49533068,190.84,190.78,16.49533068]
[1730993847543,18.4321,190.92,190.77,16.49533068]
[1730993847748,15.5564,190.84,190.75,16.495331]
[1730993847946,16.49533068,190.78,190.71,16.49533068]
[1730993848264,16.49533068,190.78,190.72,16.49533068]
[1730993848646,23.05723068,190.83,190.76,16.49533068]
[1730993848942,16.49533068,190.84,190.77,16.49533068]
[1730993849143,16.49533068,190.83,190.77,16.49533068]
[1730993849737,16.49533068,190.83,190.76,16.49533068]
[1730993849954,16.49533068,190.83,190.77,16.49533068]
[1730993850159,11.3698,190.88,190.77,16.49533068]
[1730993850160,16.49533068,190.86,190.8,16.49533068]
[1730993850357,16.49533068,190.86,190.79,16.49533068]
[1730993851158,16.49533068,190.8,190.67,40.4893]
[1730993851363,16.49533068,190.81,190.74,16.49533068]
[1730993851961,16.49533068,190.8,190.74,16.49533068]
[1730993852258,16.49533068,190.79,190.73,16.49533068]
[1730993852456,5.2399,190.84,190.75,16.49533068]
[1730993852666,16.49533068,190.82,190.75,16.49533068]
[1730993853558,16.49533068,190.81,190.74,16.49533068]
[1730993853758,16.49533068,190.8,190.73,16.49533068]
[1730993854257,6.4945,190.77,190.63,140.9]
[1730993854450,16.49533068,190.75,190.69,16.49533068]
[1730993854853,16.49533068,190.71,190.65,16.49533068]
[1730993855045,16.49533068,190.7,190.64,16.49533068]
[1730993855247,16.49533068,190.68,190.61,16.49533068]
[1730993855462,16.49533068,190.63,190.55,20.986299]
[1730993855767,16.49533068,190.61,190.55,16.49533068]
[1730993855964,16.49533068,190.63,190.56,16.49533068]
[1730993856171,11.2594,190.66,190.49,16.495331]
[1730993856353,16.49533068,190.62,190.55,16.49533068]
[1730993856559,16.49533068,190.64,190.57,16.49533068]
[1730993857365,11.2594,190.66,190.5,16.49533068]
[1730993857366,16.49533068,190.65,190.59,16.49533068]
[1730993857871,22.50983068,190.66,190.59,16.49533068]
[1730993858165,22.50983068,190.66,190.6,16.49533068]
[1730993858367,16.49533068,190.66,190.6,16.49533068]
[1730993858554,16.49533068,190.68,190.61,16.49533068]
[1730993858870,16.49533068,190.66,190.59,16.49533068]
[1730993859671,16.49533068,190.65,190.59,16.49533068]
[1730993859964,15.0556,190.7,190.62,16.49533068]
[1730993860165,16.49533068,190.69,190.62,16.49533068]